fUSD/lending_fUSD_20240718
["ID","MTS","AMOUNT","RATE_DAILY","PERIOD"]
[332509262,1721281832828,-324.6705036,0.000146,5]
[332509263,1721281832838,-64.21699777,0.000147,5]
[332509264,1721281832853,-757.21613236,0.000147,5]
[332509267,1721281838647,-712.568,0.00014421,2]
[332509268,1721281838659,-170.77581703,0.000147,5]
[332509269,1721281838673,-307.79105284,0.000147,5]
[332509270,1721281838683,-1700.0,0.000148,5]
[332509271,1721281838694,-13739.26269126,0.00014831,2]
[332509272,1721281838703,-300.0,0.00014839,2]
[332509273,1721281838714,-150.0,0.00014849,2]
[332509274,1721281838724,-481.14,0.00014849,2]
[332509275,1721281838734,-150.0,0.00014865,2]
[332509276,1721281838744,-9790.92,0.00014866,2]
[332509277,1721281838754,-2019.0139,0.0001489,2]
[332509278,1721281838768,-484.36165858,0.00014898,2]
[332509279,1721281838777,-768.47668864,0.00014899,2]
[332509280,1721281838787,-246.96177337,0.00014899,2]
[332509281,1721281838797,-181.54430172,0.00014899,2]
[332509282,1721281838808,-353.59917692,0.00014899,2]
[332509283,1721281838818,-757.2113,0.000149,2]
[332509284,1721281838828,-1000.0,0.000149,2]
[332509285,1721281838837,-259.2268,0.000149,2]
[332509286,1721281838847,-2200.0,0.000149,5]
[332509287,1721281838857,-181.45449792,0.000149,2]
[332509288,1721281838867,-312.24,0.00014904,2]
[332509289,1721281838878,-150.24,0.00014932,2]
[332509290,1721281838888,-13157.6313487,0.0001499,2]
[332509291,1721281838898,-81206.1866882,0.0001499,2]
[332509292,1721281838909,-370.48425108,0.00014997,2]
[332509293,1721281838919,-150.0,0.00014999,2]
[332509294,1721281838929,-2506.88914938,0.00015,2]
[332509295,1721281838941,-2060.705885,0.00015,2]
[332509296,1721281838957,-3385.96953395,0.00015,2]
[332509297,1721281838970,-219214.45759501,0.00015,2]
[332509298,1721281838989,-76083.70198942,0.00015,2]
[332509299,1721281839001,-2643.76187514,0.00015,2]
[332509300,1721281839054,-27393.55905045,0.00015,2]
[332509301,1721281839066,-5179.78453988,0.00015,2]
[332509302,1721281839078,-3371.18811094,0.00015,2]
[332509303,1721281839089,-500.37717444,0.00015,2]
[332509304,1721281839105,-81206.18668763,0.00015,2]
[332509307,1721281840371,-13878.66,0.00015,2]
[332509308,1721281840472,-442.09297905,0.00015,2]
[332509309,1721281840484,-1828.9246514,0.00015,2]
[332509310,1721281840496,-161519.00268234,0.00015,2]
[332509317,1721281843389,-193667.68141368,0.00015,2]
[332509318,1721281843652,-99454.6996691,0.00015,2]
[332509319,1721281843664,-988.63054217,0.00015,2]
[332509358,1721281846309,-202.29,0.0001499,3]
[332509360,1721281846321,-2741.74621968,0.00015,2]
[332509386,1721281846591,-3212.568,0.00015,2]
[332509397,1721281847194,160.64,0.00013198,2]
[332509398,1721281929229,4281.9791,0.00013921,2]
[332509399,1721282069207,550.0,0.00013,2]
[332509400,1721282074125,163.09,0.00011557,2]
[332509401,1721282143680,737.66,0.00012339,2]
[332509404,1721282225552,648.70102982,0.00013999,2]
[332509405,1721282272635,250.0,0.00013999,2]
[332509406,1721282516834,1877.64,0.00013894,2]
[332509407,1721282575621,177.34355126,0.00013977,2]
[332509408,1721282577788,185.74,0.00013958,2]
[332509409,1721282651209,755.89,0.00013989,2]
[332509410,1721282753022,700.77,0.00012297,2]
[332509411,1721282963564,465.19,0.00013962,2]
[332509415,1721283031548,-300.0,0.00014032,2]
[332509416,1721283031558,-9387.97999288,0.00014033,2]
[332509417,1721283031569,-3168.35,0.00014033,2]
[332509418,1721283031600,-3264.51941235,0.00014033,2]
[332509437,1721283037571,-5206.35059477,0.00014033,2]
[332509438,1721283037581,-159.79,0.00014166,2]
[332509439,1721283037590,-250.0,0.00014179,2]
[332509440,1721283037600,-310.41,0.00014216,2]
[332509441,1721283037609,-4065.49425365,0.00014216,2]
[332509442,1721283037621,-525.16912908,0.00014216,2]
[332509443,1721283037633,-6904.82972179,0.00014216,2]
[332509444,1721283037689,-4996.07131139,0.00014216,2]
[332509445,1721283037699,-689.59,0.00014261,2]
[332509446,1721283037708,-179.56,0.00014519,2]
[332509447,1721283037718,-269.388153,0.00014521,2]
[332509448,1721283037728,-700.77,0.0001456,2]
[332509449,1721283037738,-154.05,0.00014563,2]
[332509450,1721283037747,-600.0,0.000146,5]
[332509451,1721283037756,-355.07356262,0.0001464,2]
[332509452,1721283037765,-1200.0,0.000147,5]
[332509453,1721283037775,-764.7511365,0.000148,5]
[332509454,1721283037789,-1035.2488635,0.000148,5]
[332509455,1721283037799,-1195.08005924,0.00014889,2]
[332509456,1721283037808,-190.40457576,0.00014889,2]
[332509457,1721283037821,-165.82452726,0.00014889,2]
[332509458,1721283037832,-150.0,0.00014899,2]
[332509459,1721283037842,-156.49622265,0.00014899,2]
[332509460,1721283037852,-155.41,0.00014899,2]
[332509461,1721283037861,-530.21131214,0.000149,2]
[332509462,1721283037872,-117.92443945,0.000149,2]
[332509463,1721283037908,-412.2868727,0.000149,2]
[332509464,1721283037917,-443.6594,0.000149,2]
[332509465,1721283037927,-2500.0,0.000149,5]
[332509466,1721283037936,-3566.81981026,0.000149,2]
[332509467,1721283037946,-168.58,0.0001499,3]
[332509468,1721283037956,-505.75,0.0001499,3]
[332509469,1721283037965,-159.28475358,0.0001499,2]
[332509470,1721283037974,-159.28475358,0.0001499,2]
[332509471,1721283037984,-462.6966312,0.00014996,2]
[332509472,1721283037993,-1226.36477604,0.00014997,2]
[332509473,1721283038020,-294.6059556,0.00014997,2]
[332509474,1721283038030,-157.34913066,0.00014999,2]
[332509475,1721283038053,-342.65086934,0.00014999,2]
[332509476,1721283038062,-500.0,0.00014999,2]
[332509477,1721283038071,-500.0,0.00014999,2]
[332509478,1721283038081,-500.0,0.00014999,2]
[332509479,1721283038091,-500.0,0.00014999,2]
[332509480,1721283038100,-500.0,0.00014999,2]
[332509482,1721283038110,-500.0,0.00014999,2]
[332509484,1721283038120,-500.0,0.00014999,2]
[332509486,1721283038130,-217.80343203,0.00014999,2]
[332509488,1721283038139,-500.0,0.00014999,2]
[332509490,1721283038148,-500.0,0.00014999,2]
[332509492,1721283038158,-500.0,0.00014999,2]
[332509494,1721283038167,-500.0,0.00014999,2]
[332509496,1721283038177,-500.0,0.00014999,2]
[332509498,1721283038187,-500.0,0.00014999,2]
[332509500,1721283038196,-500.0,0.00014999,2]
[332509502,1721283038205,-500.0,0.00014999,2]
[332509504,1721283038214,-500.0,0.00014999,2]
[332509506,1721283038224,-500.0,0.00014999,2]
[332509508,1721283038234,-500.0,0.00014999,2]
[332509510,1721283038243,-500.0,0.00014999,2]
[332509512,1721283038253,-217.4234811,0.00014999,2]
[332509514,1721283038263,-404.31395841,0.00014999,2]
[332509516,1721283038272,-898.24,0.00014999,2]
[332509518,1721283038282,-104730.29857104,0.00015,2]
[332509520,1721283038293,-561.49126671,0.00015,2]
[332509522,1721283038305,-16136.65150265,0.00015,2]
[332509524,1721283038316,-272.39967866,0.00015,2]
[332509526,1721283038327,-17969.75062667,0.00015,2]
[332509527,1721283038388,-5877.83221215,0.00015,2]
[332509528,1721283038399,-298.41728368,0.00015,2]
[332509529,1721283038410,-1825.11559147,0.00015,2]
[332509666,1721283039816,-312.15349359,0.000149,2]
[332509668,1721283039831,-214.29650641,0.00015,2]
[332509686,1721283040026,-945.32683514,0.00015,2]
[332509687,1721283040040,-1948.233131,0.00015,2]
[332509801,1721283042801,-253.0768588,0.00014799,2]
[332509802,1721283042931,-2872.01820702,0.00014799,2]
[332509803,1721283042941,-96582.68146208,0.00015,2]
[332509804,1721283042953,-833.51676107,0.00015,2]
[332509825,1721283045608,-5862.67677241,0.00015,2]
[332509827,1721283045619,-8021.15857371,0.00015,2]
[332509829,1721283045631,-1250.0945842,0.00015,2]
[332509831,1721283045643,-2128.84910156,0.00015,2]
[332509834,1721283045655,-1002.66863856,0.00015,2]
[332509836,1721283045673,-759.27076118,0.00015,2]
[332509855,1721283045908,-63634.1887,0.00015,2]
[332509856,1721283045919,-27444.66588,0.00015,2]
[332509861,1721283415063,166.95,0.00013915,2]
[332509863,1721283449237,250.0,0.00013899,2]
[332509864,1721283469828,780.69,0.00011971,2]
[332509865,1721283528546,232.59,0.0001387,2]
[332509866,1721283570671,2016.99,0.00013856,2]
[332509867,1721283615212,8576.1196,0.00013986,2]
[332509868,1721283627420,154.06,0.00013824,2]
[332509869,1721283665104,849.4359814,0.00014,5]
[332509870,1721283709421,167.09,0.00013832,2]
[332509871,1721283744080,23900.0,0.00013826,2]
[332509872,1721283770597,1553.52,0.00013822,2]
[332509873,1721283800576,150.0,0.00013822,2]
[332509874,1721283844855,161.77938622,0.00013985,2]
[332509875,1721283873522,550.0,0.00013,2]
[332509876,1721283878611,551.68,0.00013838,2]
[332509877,1721283886289,952.67650872,0.00013986,2]
[332509878,1721283908170,278775.05422973,0.00014,2]
[332509879,1721283914455,1409.11871613,0.000121,30]
[332509880,1721283929262,6270.89281678,0.000118,2]
[332509881,1721283945138,293.69684138,0.00013999,2]
[332509882,1721283960691,908.33,0.0001385,2]
[332509883,1721283986213,1111.85,0.0002,30]
[332509884,1721284002473,1235.29,0.00013859,2]
[332509885,1721284024772,765.16,0.00011949,2]
[332509888,1721284029742,232.59,0.00013864,2]
[332509889,1721284052299,166.95,0.00013852,2]
[332509891,1721284102866,236026.60741064,0.00013852,2]
[332509892,1721284107527,1116.71152841,0.00012,30]
[332509893,1721284117856,236026.60741064,0.00013852,2]
[332509896,1721284231801,-448.32,0.00014086,2]
[332509897,1721284231811,-765.16,0.00014213,2]
[332509898,1721284231820,-342.435956,0.00014521,2]
[332509899,1721284231830,-600.0,0.000146,5]
[332509900,1721284231840,-332.40589278,0.00014699,2]
[332509901,1721284231851,-578.5596183,0.00014699,2]
[332509902,1721284231868,-94.37650192,0.00014699,2]
[332509903,1721284231878,-1200.0,0.000147,5]
[332509904,1721284231888,-355.07356262,0.00014726,2]
[332509905,1721284231898,-150.0,0.00014727,2]
[332509906,1721284231907,-499.99,0.00014734,2]
[332509907,1721284231917,-175.81838702,0.00014755,2]
[332509908,1721284231926,-150.0,0.00014773,2]
[332509909,1721284231935,-2026.24154844,0.0001479,2]
[332509910,1721284231947,-3520.92785156,0.0001479,2]
[332509911,1721284231957,-1800.0,0.000148,5]
[332509912,1721284231967,-150.0,0.00014805,2]
[332509913,1721284231977,-150.0,0.00014806,2]
[332509914,1721284231987,-304.80832522,0.00014816,2]
[332509915,1721284231997,-150.0,0.00014858,2]
[332509916,1721284232006,-419.04524844,0.00014868,2]
[332509917,1721284232030,-111.23883234,0.00014868,2]
[332509918,1721284232042,-150.0,0.00014878,2]
[332509919,1721284232052,-150.0,0.0001488,2]
[332509920,1721284232062,-250.85,0.0001488,3]
[332509921,1721284232072,-752.59,0.0001488,3]
[332509922,1721284232082,-150.0,0.00014889,2]
[332509923,1721284232091,-77.8930759,0.00014889,2]
[332509924,1721284232103,-379.34956382,0.00014889,2]
[332509925,1721284232123,-551.78064275,0.00014889,2]
[332509926,1721284232133,-279.88137451,0.0001489,2]
[332509927,1721284232144,-678.69156372,0.0001489,2]
[332509928,1721284232156,-2219.9999988,0.0001489,2]
[332509929,1721284232172,-1235.44070968,0.0001489,2]
[332509930,1721284232185,-148992.85175329,0.0001489,2]
[332509931,1721284232195,-242.7045,0.0001489,2]
[332509932,1721284232204,-150.0,0.00014897,2]
[332509933,1721284232215,-273.90957045,0.00014899,2]
[332509934,1721284232226,-2308.7190597,0.00014899,2]
[332509935,1721284232236,-1156.00504343,0.00014899,2]
[332509936,1721284232247,-2500.0,0.000149,5]
[332509937,1721284232257,-195.39152993,0.000149,2]
[332509938,1721284232268,-3354.37973962,0.000149,2]
[332509939,1721284232277,-312.21358384,0.000149,2]
[332509940,1721284232287,-150.0,0.00014909,2]
[332509941,1721284232296,-150.0,0.00014922,2]
[332509942,1721284232308,-150.0,0.00014933,2]
[332509943,1721284232318,-691.95543253,0.00014933,2]
[332509944,1721284232327,-150.0,0.00014942,2]
[332509945,1721284232336,-150.0,0.00014956,2]
[332509946,1721284232345,-150.0,0.0001496,2]
[332509947,1721284232355,-196.66603017,0.00014972,2]
[332509948,1721284232365,-186.45223523,0.00014988,2]
[332509949,1721284232375,-155.0,0.00014989,2]
[332509950,1721284232384,-159.28475359,0.0001499,2]
[332509951,1721284232394,-150.0,0.00014992,2]
[332509952,1721284232403,-1678.27280306,0.00014999,2]
[332509953,1721284232412,-500.0,0.00014999,2]
[332509954,1721284232422,-500.0,0.00014999,2]
[332509955,1721284232431,-500.0,0.00014999,2]
[332509956,1721284232440,-608.38578241,0.00014999,2]
[332509957,1721284232700,-500.0,0.00014999,2]
[332509958,1721284232712,-500.0,0.00014999,2]
[332509959,1721284232722,-200.0,0.00014999,2]
[332509960,1721284232732,-500.0,0.00014999,2]
[332509961,1721284232741,-500.0,0.00014999,2]
[332509962,1721284232751,-500.0,0.00014999,2]
[332509963,1721284232761,-500.0,0.00014999,2]
[332509964,1721284232771,-500.0,0.00014999,2]
[332509965,1721284232780,-200.0,0.00014999,2]
[332509966,1721284232789,-500.0,0.00014999,2]
[332509967,1721284232798,-500.0,0.00014999,2]
[332509968,1721284232808,-500.0,0.00014999,2]
[332509969,1721284232818,-500.0,0.00014999,2]
[332509970,1721284232827,-217.4234811,0.00014999,2]
[332509971,1721284232837,-500.0,0.00014999,2]
[332509972,1721284232846,-500.0,0.00014999,2]
[332509973,1721284232855,-217.80343203,0.00014999,2]
[332509974,1721284232865,-975.78284785,0.00014999,2]
[332509975,1721284232874,-248.7913746,0.00014999,2]
[332509976,1721284232884,-500.0,0.00014999,2]
[332509977,1721284232893,-572.44868927,0.00014999,2]
[332509978,1721284232902,-1066.65,0.00014999,2]
[332509979,1721284232911,-648.70102982,0.00014999,2]
[332509980,1721284232921,-154.89292255,0.00014999,2]
[332509981,1721284232930,-216738.11100988,0.00015,2]
[332509982,1721284232945,-2289.26786308,0.00015,2]
[332509983,1721284232991,-2670.35134403,0.00015,2]
[332509984,1721284233003,-1033.7,0.00015,2]
[332509985,1721284233015,-2315.76431991,0.00015,2]
[332509990,1721284237740,-158.95048887,0.0001479,2]
[332509991,1721284237751,-228.04541099,0.00014932,2]
[332509993,1721284237760,-1380.65717014,0.00014997,2]
[332509995,1721284237775,-621.03740717,0.00014997,2]
[332509996,1721284237785,-3113.92103431,0.00015,2]
[332509997,1721284237795,-19682.3442669,0.00015,2]
[332509998,1721284237877,-43806.06142314,0.00015,2]
[332509999,1721284237888,-4556.85552,0.00015,2]
[332510000,1721284237916,-1106.21366433,0.00015,2]
[332510001,1721284238068,-1200.0,0.00015,2]
[332510002,1721284238079,-1032.04356358,0.00015,2]
[332510003,1721284238091,-116310.73031192,0.00015,2]
[332510026,1721284239891,-347.74185886,0.00015,2]
[332510027,1721284239903,-27289.38432424,0.00015,2]
[332510028,1721284240427,-5427.19204843,0.00015,2]
[332510029,1721284240438,-1748.56626615,0.00015,2]
[332510030,1721284240450,-1120.0285415,0.00015,2]
[332510031,1721284240461,-3527.75465539,0.00015,2]
[332510032,1721284240481,-3210.65,0.00015,2]
[332510042,1721284242775,-1175.26064,0.00015,2]
[332510044,1721284242786,-59352.95213479,0.00015,2]
[332510054,1721284242915,-1160.02723563,0.00015,2]
[332510055,1721284242927,-692.45258626,0.00015,2]
[332510056,1721284242971,-421.401,0.00015,2]
[332510057,1721284242982,-602591.14115636,0.00015,2]
[332510058,1721284242994,-4491.58898376,0.00015,2]
[332510059,1721284243005,-946.16994413,0.00015,2]
[332510060,1721284243036,-1281.28,0.00015,2]
[332510061,1721284243048,-1006.62630079,0.00015,2]
[332510062,1721284243059,-352.72799642,0.00015,2]
[332510063,1721284243074,-1789.29207492,0.00015,2]
[332510064,1721284243085,-406.07,0.00015,2]
[332510065,1721284243096,-290.04437583,0.00015,2]
[332510066,1721284243108,-502.50106295,0.00015,2]
[332510067,1721284243130,-263.05252642,0.00015,2]
[332510068,1721284243142,-96582.68146208,0.00015,2]
[332510069,1721284243153,-701.666667,0.00015,2]
[332510070,1721284243171,-775.0,0.00015,2]
[332510071,1721284243183,-783.49452537,0.00015,2]
[332510077,1721284245442,31013.07684299,0.00013852,2]
[332510080,1721284245852,-2139.91841431,0.00015,2]
[332510081,1721284245864,-618.3903605,0.00015,2]
[332510082,1721284245875,-1746.88782103,0.00015,2]
[332510083,1721284245886,-2746.11444059,0.00015,2]
[332510084,1721284245897,-400.0,0.00015,2]
[332510085,1721284245908,-7900.68616691,0.00015,2]
[332510086,1721284245939,-478.05575069,0.00015,2]
[332510087,1721284245950,-393.76878671,0.00015,2]
[332510088,1721284245966,-607.46718085,0.00015,2]
[332510089,1721284245978,-854.0,0.00015,2]
[332510090,1721284245989,-1040.07957238,0.00015,2]
[332510091,1721284246105,-3299.11777029,0.00015,2]
[332510092,1721284246116,-905.72771757,0.00015,2]
[332510093,1721284246127,-450.62169794,0.00015,2]
[332510094,1721284246251,-376844.58769342,0.00015,2]
[332510095,1721284246277,-4028.06691352,0.00015,2]
[332510096,1721284246289,-1280.55912122,0.00015,2]
[332510097,1721284246302,-2962.89783518,0.00015,2]
[332510098,1721284246334,-582.06334591,0.00015,2]
[332510099,1721284246345,-873.74712415,0.00015,2]
[332510100,1721284246357,-1933.92052558,0.00015,2]
[332510101,1721284246368,-2441.08068232,0.00015,2]
[332510102,1721284351069,-502.6710065,0.00014699,2]
[332510103,1721284351093,-400.0,0.000147,5]
[332510104,1721284351116,-800.0,0.000148,5]
[332510105,1721284351137,-2402.3289935,0.0001485,2]
[332510106,1721284546679,728.8,0.00012276,2]
[332510107,1721284754565,500.0,0.00013999,2]
[332510108,1721284766294,1500.0,0.00013699,5]
[332510109,1721284842822,11000.0,0.0001356,2]
[332510110,1721284842844,12890.0,0.0001356,2]
[332510111,1721284892959,158.97,0.00013589,2]
[332510112,1721285123649,166.95,0.00013699,2]
[332510114,1721285258720,692.36,0.00011643,2]
[332510115,1721285258943,692.36,0.00013907,2]
[332510129,1721285431884,-150.0,0.00014027,2]
[332510130,1721285431897,-239.00967572,0.00014041,2]
[332510131,1721285431955,-772.12032428,0.00014041,2]
[332510132,1721285431967,-1011.13,0.00014045,2]
[332510133,1721285431979,-1011.13,0.00014049,2]
[332510134,1721285431992,-1011.13,0.00014052,2]
[332510135,1721285432004,-290.53037471,0.00014056,2]
[332510136,1721285432071,-541.15381299,0.00014056,2]
[332510137,1721285432085,-179.4458123,0.00014056,2]
[332510138,1721285432097,-1011.13,0.0001406,2]
[332510139,1721285432109,-468.47,0.00014063,2]
[332510140,1721285432121,-406.55902706,0.00014063,2]
[332510141,1721285432135,-588.74678369,0.00014063,2]
[332510142,1721285432149,-15.82418925,0.00014063,2]
[332510143,1721285432161,-1011.13,0.00014067,2]
[332510144,1721285432172,-499.99,0.00014067,2]
[332510145,1721285432184,-299.99,0.00014067,2]
[332510146,1721285432196,-182.24192931,0.00014071,2]
[332510147,1721285432211,-828.88807069,0.00014071,2]
[332510148,1721285432223,-1139.8,0.00014071,2]
[332510149,1721285432235,-305.67192931,0.00014075,2]
[332510150,1721285432277,-705.45807069,0.00014075,2]
[332510151,1721285432288,-1011.13,0.00014078,2]
[332510152,1721285432301,-1011.13,0.00014082,2]
[332510154,1721285432312,-1011.13,0.00014086,2]
[332510156,1721285432324,-1011.13,0.00014089,2]
[332510157,1721285432337,-1011.13,0.00014093,2]
[332510158,1721285432350,-1011.13,0.00014097,2]
[332510159,1721285432361,-1011.13,0.000141,2]
[332510160,1721285432374,-1011.13,0.00014104,2]
[332510161,1721285432387,-1011.13,0.00014108,2]
[332510162,1721285432400,-1011.13,0.00014112,2]
[332510163,1721285432414,-1000.0,0.00014246,2]
[332510164,1721285432426,-1195.08005924,0.00014574,2]
[332510165,1721285432438,-1195.08005924,0.00014574,2]
[332510166,1721285432451,-251.3355033,0.00014699,2]
[332510167,1721285432464,-700.0,0.000147,5]
[332510168,1721285432477,-150.0,0.000147,2]
[332510169,1721285432491,-355.07356262,0.00014746,2]
[332510170,1721285432503,-648.70102982,0.00014754,2]
[332510171,1721285432516,-900.099,0.00014755,2]
[332510172,1721285432528,-4102.0,0.0001479,2]
[332510173,1721285432541,-308.19236,0.00014795,2]
[332510174,1721285432553,-1400.0,0.000148,5]
[332510175,1721285432565,-3000.0,0.0001486,2]
[332510176,1721285432576,-11878.93361729,0.0001489,2]
[332510177,1721285432588,-158.95048886,0.00014897,2]
[332510178,1721285432599,-210.01644036,0.00014897,2]
[332510179,1721285432611,-23586.7382,0.000149,2]
[332510180,1721285432628,-6284.3063,0.000149,2]
[332510181,1721285432640,-123085.00128346,0.000149,2]
[332510182,1721285432654,-10344.59586819,0.000149,2]
[332510183,1721285432677,-9537.10640704,0.000149,2]
[332510185,1721285437958,-407.15743384,0.00014899,2]
[332510186,1721285437970,-124.13493306,0.00014899,2]
[332510187,1721285437980,-14612.70868787,0.000149,2]
[332510188,1721285437992,-2846.7915404,0.000149,2]
[332510189,1721285438035,-14784.121523,0.000149,2]
[332510190,1721285438049,-341.79823525,0.000149,2]
[332510191,1721285438061,-116310.73031192,0.000149,2]
[332510192,1721285438072,-1886.88,0.000149,2]
[332510193,1721285438085,-23876.33875266,0.000149,2]
[332510194,1721285438096,-13557.22040255,0.000149,2]
[332510195,1721285438120,-3826.61502,0.000149,2]
[332510196,1721285438132,-969.78150889,0.000149,2]
[332510197,1721285438144,-998.52381322,0.000149,2]
[332510198,1721285438156,-1347.41621481,0.000149,2]
[332510199,1721285438258,-1115.851326,0.000149,2]
[332510201,1721285438271,-302.52178472,0.000149,2]
[332510202,1721285438283,-1520.60108001,0.000149,2]
[332510203,1721285438295,-1425.33982887,0.000149,2]
[332510214,1721285440083,-527.39556223,0.00014899,2]
[332510215,1721285440174,-435.85845339,0.00014899,2]
[332510216,1721285440185,-6527.07344302,0.000149,2]
[332510217,1721285440197,-2980.52193553,0.000149,2]
[332510218,1721285440257,-485.2,0.000149,2]
[332510219,1721285440271,-535.61941143,0.000149,2]
[332510220,1721285440283,-707.12336694,0.000149,2]
[332510221,1721285440294,-298.22160985,0.000149,2]
[332510222,1721285440482,-1625.952505,0.000149,2]
[332510223,1721285440549,-29914.45069496,0.000149,2]
[332510224,1721285440561,-1048.582763,0.000149,2]
[332510230,1721285440705,-60654.94601541,0.000149,2]
[332510232,1721285440716,-3370.7638,0.000149,2]
[332510235,1721285440726,-166.5468764,0.000149,2]
[332510236,1721285440735,-2100.0,0.000149,5]
[332510239,1721285440747,-312.21358373,0.000149,2]
[332510241,1721285440758,-220.62,0.00014904,3]
[332510243,1721285440769,-599.45308107,0.0001493,2]
[332510245,1721285440779,-156.41169042,0.00014939,2]
[332510247,1721285440788,-3000.0,0.0001494,2]
[332510249,1721285440798,-501.7,0.0001498,3]
[332510251,1721285440808,-94105.25640384,0.0001499,2]
[332510254,1721285440821,-6638.790878,0.0001499,2]
[332510255,1721285441522,-1274.35676814,0.0001499,2]
[332510256,1721285441534,-1300.47673645,0.0001499,2]
[332510257,1721285441546,-384.644286,0.0001499,2]
[332510258,1721285441561,-359.38972543,0.0001499,2]
[332510266,1721285443438,-669.05626928,0.0001499,2]
[332510270,1721285443451,-1598.31428799,0.0001499,2]
[332510271,1721285443463,-44643.11249064,0.0001499,2]
[332510272,1721285443474,-14061.047,0.0001499,2]
[332510273,1721285443487,-13369.58589815,0.0001499,2]
[332510274,1721285443499,-2356.85062427,0.0001499,2]
[332510275,1721285443510,-1113.8701207,0.0001499,2]
[332510276,1721285443522,-61913.49864811,0.0001499,2]
[332510277,1721285443531,-159.90390875,0.0001499,2]
[332510278,1721285443542,-155.0,0.00014996,2]
[332510279,1721285443552,-154.33032652,0.00014997,2]
[332510281,1721285443561,-487.89142392,0.00014999,2]
[332510282,1721285443571,-1022.2,0.00014999,2]
[332510284,1721285443580,-500.0,0.00014999,2]
[332510287,1721285443591,-500.0,0.00014999,2]
[332510288,1721285443600,-500.0,0.00014999,2]
[332510289,1721285443609,-537.26852947,0.00014999,2]
[332510290,1721285443621,-1634.6659756,0.00014999,2]
[332510291,1721285443633,-819.8640829,0.00014999,2]
[332510292,1721285443644,-14853.54928316,0.00014999,2]
[332510293,1721285443653,-721.0,0.00015,2]
[332510294,1721285443662,-4343.16023057,0.00015,2]
[332510295,1721285443674,-298.93134934,0.00015,2]
[332510296,1721285443685,-653.347,0.00015,2]
[332510297,1721285449511,-157.03278884,0.000149,2]
[332510298,1721285449520,-15700.21657301,0.00015,2]
[332510299,1721285449532,-7393.68465485,0.00015,2]
[332510300,1721285449566,-6378.6361604,0.00015,2]
[332510301,1721285449829,-607.45482004,0.00014999,2]
[332510302,1721285475174,6114.188,0.00013927,2]
[332510303,1721285522534,334.80333095,0.00013927,2]
[332510304,1721285528492,202782.18414222,0.00013927,2]
[332510305,1721285678140,550.0,0.00013,2]
[332510306,1721285745538,7000.0,0.00024,60]
[332510307,1721285785798,623.12,0.0001224,2]
[332510308,1721286035147,179.4,0.00013991,2]
[332510310,1721286465673,165.71,0.00013939,2]
[332510311,1721286563904,591.96,0.00012016,2]
[332510312,1721286577278,1500.0,0.00013929,5]
[332510313,1721286603775,163.06,0.00013948,2]
[332510328,1721286634244,-166.95,0.00014003,2]
[332510329,1721286634254,-407.30050338,0.00014228,2]
[332510330,1721286634270,-592.69949662,0.00014228,2]
[332510331,1721286634280,-240.17284108,0.00014279,2]
[332510332,1721286634292,-591.96,0.0001428,2]
[332510333,1721286634302,-589.95815864,0.00014374,2]
[332510334,1721286634312,-155.7,0.00014375,2]
[332510335,1721286634322,-4326.23410366,0.00014375,2]
[332510336,1721286634363,-1151.74358495,0.00014375,2]
[332510337,1721286634373,-251.3355033,0.00014699,2]
[332510338,1721286634383,-96.92091175,0.00014699,2]
[332510339,1721286634394,-184.77908825,0.00014699,2]
[332510340,1721286634403,-415.22091175,0.000147,5]
[332510341,1721286634415,-84.77908825,0.000147,5]